fUST/lending_fUST_20250301
["ID","MTS","AMOUNT","RATE_DAILY","PERIOD"]
[354893770,1740795032729,-820.34565805,0.000279,2]
[354893771,1740795032739,-300.0,0.00028514,2]
[354893772,1740795032751,-6724.02357745,0.00028515,2]
[354893773,1740795032760,-24900.0,0.00029227,2]
[354893774,1740795032769,-2105.993013,0.00029304,2]
[354893775,1740795032779,-427.5340273,0.00029395,2]
[354893776,1740795032790,-230.0,0.00029436,2]
[354893777,1740795032799,-189.561446,0.00029561,2]
[354893778,1740795032809,-155.29,0.0002974,2]
[354893779,1740795032818,-155.29,0.0002974,2]
[354893780,1740795032828,-155.29,0.0002974,2]
[354893781,1740795032837,-10000.0,0.0002975,2]
[354893782,1740795032847,-246.99505675,0.000299,5]
[354893783,1740795032856,-155.29,0.0002999,2]
[354893784,1740795032865,-4079.28048008,0.0003,2]
[354893785,1740795032876,-443.0,0.0003,2]
[354893786,1740795032886,-178.39674791,0.00030137,2]
[354893787,1740795032896,-1853.02608074,0.00030137,2]
[354893788,1740795032905,-246.99505669,0.0003059,5]
[354893789,1740795032915,-431.45879645,0.00030895,2]
[354893790,1740795033075,-151.0,0.0003098,2]
[354893791,1740795033086,-500.0,0.0003098,2]
[354893792,1740795033096,-500.0,0.00030997,2]
[354893793,1740795033106,-151.38965688,0.00031,10]
[354893804,1740795037832,-418.97,0.0003099,3]
[354893805,1740795037842,-500.0,0.00030993,2]
[354893806,1740795037851,-331.03,0.00030993,2]
[354893851,1740795046379,-155.29,0.00030983,2]
[354893852,1740795046389,-155.29,0.00030983,2]
[354893853,1740795046400,-155.29,0.00030983,2]
[354893854,1740795046410,-155.29,0.0003099,2]
[354893855,1740795046419,-155.29,0.0003099,2]
[354893856,1740795046429,-155.29,0.0003099,2]
[354893857,1740795046755,-155.29,0.0003099,2]
[354893858,1740795046796,-155.29,0.0003099,2]
[354893859,1740795046807,-168.97,0.00030993,2]
[354893860,1740795046817,-500.0,0.00030993,2]
[354893861,1740795046827,-500.0,0.00030993,2]
[354893862,1740795046837,-500.0,0.00030993,2]
[354893863,1740795046846,-500.0,0.00030993,2]
[354893864,1740795046855,-375.25759466,0.00030993,2]
[354893865,1740795047722,-43.14408999,0.00030993,2]
[354893866,1740795051310,5000.0,0.0003,7]
[354893867,1740795059677,5000.0,0.0003,7]
[354893868,1740795063558,-150.0,0.00029991,2]
[354893869,1740795066070,184.264536,0.00029744,120]
[354893870,1740795066639,-150.0,0.00029991,2]
[354893871,1740795067214,-100.553504,0.00029991,2]
[354893872,1740795067239,-49.446496,0.00030992,2]
[354893873,1740795068126,852.80533062,0.0003,7]
[354893874,1740795068359,-150.0,0.00030992,2]
[354893875,1740795068943,-150.0,0.00030992,2]
[354893876,1740795069778,-50.553504,0.00030992,2]
[354893877,1740795069803,-81.59831535,0.00030993,2]
[354893878,1740795069825,-17.84818065,0.00030993,2]
[354893879,1740795073208,-150.0,0.00030993,2]
[354893880,1740795073716,-150.0,0.00030993,2]
[354893881,1740795074258,-150.0,0.00030993,2]
[354893882,1740795075663,150.0,0.0003099,3]
[354893883,1740795080352,-150.0,0.0003099,3]
[354893884,1740795081003,-150.0,0.0003099,3]
[354893885,1740795084020,-150.0,0.00030893,2]
[354893886,1740795084608,-150.0,0.00030893,2]
[354893887,1740795085138,-150.0,0.00030893,2]
[354893888,1740795085712,-150.0,0.00030893,2]
[354893889,1740795089141,-150.0,0.00030893,2]
[354893890,1740795091812,-150.0,0.00030893,2]
[354893891,1740795092365,-150.0,0.00030893,2]
[354893892,1740795156531,-150.0,0.00029592,2]
[354893894,1740795264934,-150.0,0.00029567,2]
[354893895,1740795265742,720.50942707,0.0003,7]
[354893896,1740795271380,-150.0,0.00029567,2]
[354893897,1740795278893,150.0,0.00028795,2]
[354893898,1740795314965,150.0,0.00029436,7]
[354893899,1740795318302,150.0,0.00029436,7]
[354893900,1740795384508,-150.0,0.00028795,2]
[354893901,1740795385647,-150.0,0.00028795,2]
[354893902,1740795389731,-150.0,0.00028795,2]
[354893903,1740795398253,1000.48223726,0.00025,120]
[354893904,1740795447665,856.57357249,0.00028,30]
[354893908,1740795515520,-150.0,0.00028795,2]
[354893909,1740795580733,-150.0,0.00028793,2]
[354893910,1740795583947,150.0,0.000309,5]
[354893911,1740795584830,-150.0,0.00028793,2]
[354893914,1740795706453,-150.0,0.00028793,2]
[354893923,1740795767572,-150.0,0.00028793,2]
[354893924,1740795829115,-150.0,0.00028192,2]
[354893925,1740795832122,-150.0,0.00028192,2]
[354893930,1740795876729,-150.0,0.00028033,2]
[354893931,1740795880249,-150.0,0.00028033,2]
[354893932,1740795881352,-150.0,0.00028033,2]
[354893933,1740795881840,-150.0,0.00028033,2]
[354893934,1740795885635,-150.0,0.00028033,2]
[354893936,1740795894357,-150.0,0.00028033,2]
[354893937,1740795897917,-150.0,0.00028033,2]
[354893938,1740795898964,-150.0,0.00028033,2]
[354893942,1740795918832,-150.0,0.00028,2]
[354893943,1740795919198,-21.2260753,0.00028,2]
[354893944,1740795933759,-150.0,0.00028032,2]
[354893945,1740795942832,-150.0,0.00028032,2]
[354893946,1740795943487,-150.0,0.000309,5]
[354893947,1740795944491,-150.0,0.00028033,2]
[354893958,1740796052313,899.16500576,0.00028,30]
[354893960,1740796058958,1034.9,0.00025,120]
[354893962,1740796081113,6599.28065739,0.0002035,2]
[354893963,1740796102159,500.0,0.00025,2]
[354893964,1740796105300,2043.48928749,0.000176,2]
[354893965,1740796113994,29883.02712702,0.0001711,2]
[354893967,1740796114196,7043.92208214,0.00018,4]
[354893972,1740796115865,7583.48096043,0.00023,2]
[354893976,1740796122365,516.54429319,0.0002,120]
[354893981,1740796150441,-300.0,0.00022999,2]
[354893982,1740796150465,-1094.9948951,0.00023,2]
[354893986,1740796185790,183.107451,0.00027397,120]
[354893992,1740796220238,476.19,0.000275,7]
[354893993,1740796221136,476.19,0.000299,7]
[354894037,1740796232631,-465.07919753,0.000229,2]
[354894038,1740796232641,-300.0,0.00022999,2]
[354894039,1740796232651,-321.52414425,0.00023,2]
[354894040,1740796232660,-33636.67542605,0.00023,2]
[354894041,1740796232669,-1663.04173995,0.00024,2]
[354894042,1740796232678,-16.57264852,0.00024334,2]
[354894047,1740796237976,-342.25165328,0.00024334,2]
[354894048,1740796237985,-420.0,0.00024967,2]
[354894049,1740796237994,-2581.94705709,0.00025,2]
[354894050,1740796238004,-10364.0,0.00025,2]
[354894051,1740796238013,-1000.0,0.000255,2]
[354894052,1740796238026,-220.52871979,0.000258,4]
[354894053,1740796238035,-220.52871957,0.000258,4]
[354894054,1740796238045,-220.52871957,0.000258,4]
[354894055,1740796238054,-513.61832174,0.00026,2]
[354894056,1740796238064,-19900.0,0.00026,2]
[354894057,1740796238073,-220.52871957,0.00026486,4]
[354894058,1740796238084,-3631.53840628,0.00027,2]
[354894059,1740796238094,-587.0,0.00027103,2]
[354894060,1740796238104,-220.52871957,0.00027348,4]
[354894061,1740796238113,-174.57,0.0002749,3]
[354894062,1740796238122,-261.86,0.0002749,3]
[354894063,1740796238131,-785.59,0.0002749,3]
[354894065,1740796238141,-500.0,0.00027499,2]
[354894067,1740796238150,-500.0,0.00027499,2]
[354894068,1740796238159,-210.52225673,0.00027499,2]
[354894070,1740796238169,-500.0,0.00027499,2]
[354894072,1740796238179,-500.0,0.00027499,2]
[354894073,1740796238188,-500.0,0.00027499,2]
[354894075,1740796238198,-500.0,0.00027499,2]
[354894077,1740796238207,-500.0,0.00027499,2]
[354894078,1740796238216,-500.0,0.00027499,2]
[354894080,1740796238225,-500.0,0.00027499,2]
[354894082,1740796238234,-500.0,0.00027499,2]
[354894083,1740796238244,-500.0,0.00027499,2]
[354894085,1740796238253,-500.0,0.00027499,2]
[354894087,1740796238263,-500.0,0.00027499,2]
[354894088,1740796238272,-500.0,0.00027499,2]
[354894089,1740796238281,-500.0,0.00027499,2]
[354894090,1740796238291,-500.0,0.00027499,2]
[354894091,1740796238300,-500.0,0.00027499,2]
[354894092,1740796238310,-500.0,0.00027499,2]
[354894093,1740796238319,-500.0,0.00027499,2]
[354894094,1740796238328,-500.0,0.00027499,2]
[354894095,1740796238338,-500.0,0.00027499,2]
[354894096,1740796238347,-265.92799333,0.00027499,2]
[354894097,1740796238357,-500.0,0.00027499,2]
[354894098,1740796238366,-500.0,0.00027499,2]
[354894099,1740796238375,-500.0,0.00027499,2]
[354894100,1740796238385,-500.0,0.00027499,2]
[354894101,1740796238394,-500.0,0.00027499,2]
[354894102,1740796238403,-500.0,0.00027499,2]
[354894103,1740796238413,-500.0,0.00027499,2]
[354894104,1740796238424,-500.0,0.00027499,2]
[354894105,1740796238434,-500.0,0.00027499,2]
[354894106,1740796238444,-500.0,0.00027499,2]
[354894107,1740796238453,-500.0,0.00027499,2]
[354894108,1740796238462,-500.0,0.00027499,2]
[354894109,1740796238471,-500.0,0.00027499,2]
[354894110,1740796238481,-500.0,0.00027499,2]
[354894111,1740796238490,-500.0,0.00027499,2]
[354894112,1740796238500,-500.0,0.00027499,2]
[354894113,1740796238509,-500.0,0.00027499,2]
[354894114,1740796238518,-500.0,0.00027499,2]
[354894115,1740796238528,-233.69588265,0.00027499,2]
[354894116,1740796238537,-500.0,0.00027499,2]
[354894117,1740796238550,-500.0,0.00027499,2]
[354894118,1740796238559,-500.0,0.00027499,2]
[354894119,1740796238569,-500.0,0.00027499,2]
[354894120,1740796238579,-272.8714679,0.00027499,2]
[354894121,1740796238588,-500.0,0.00027499,2]
[354894122,1740796238598,-500.0,0.00027499,2]
[354894123,1740796238608,-500.0,0.00027499,2]
[354894124,1740796238618,-500.0,0.00027499,2]
[354894125,1740796238627,-500.0,0.00027499,2]
[354894126,1740796238637,-500.0,0.00027499,2]
[354894127,1740796238646,-500.0,0.00027499,2]
[354894128,1740796238656,-500.0,0.00027499,2]
[354894129,1740796238665,-500.0,0.00027499,2]
[354894130,1740796238675,-500.0,0.00027499,2]
[354894131,1740796238684,-500.0,0.00027499,2]
[354894132,1740796238694,-500.0,0.00027499,2]
[354894133,1740796238703,-500.0,0.00027499,2]
[354894134,1740796238712,-500.0,0.00027499,2]
[354894135,1740796238722,-500.0,0.00027499,2]
[354894136,1740796238731,-500.0,0.00027499,2]
[354894137,1740796238740,-500.0,0.00027499,2]
[354894138,1740796238749,-500.0,0.00027499,2]
[354894139,1740796238759,-500.0,0.00027499,2]
[354894140,1740796238769,-500.0,0.00027499,2]
[354894141,1740796238778,-500.0,0.00027499,2]
[354894142,1740796238789,-500.0,0.00027499,2]
[354894143,1740796238800,-500.0,0.00027499,2]
[354894144,1740796238809,-500.0,0.00027499,2]
[354894145,1740796238819,-500.0,0.00027499,2]
[354894146,1740796238828,-500.0,0.00027499,2]
[354894147,1740796238838,-500.0,0.00027499,2]
[354894148,1740796238847,-500.0,0.00027499,2]
[354894149,1740796238857,-500.0,0.00027499,2]
[354894150,1740796238865,-500.0,0.00027499,2]
[354894151,1740796238875,-500.0,0.00027499,2]
[354894152,1740796238884,-500.0,0.00027499,2]
[354894153,1740796238893,-500.0,0.00027499,2]
[354894154,1740796238902,-500.0,0.00027499,2]
[354894155,1740796238911,-500.0,0.00027499,2]
[354894156,1740796238921,-500.0,0.00027499,2]
[354894157,1740796238930,-500.0,0.00027499,2]
[354894158,1740796238939,-500.0,0.00027499,2]
[354894159,1740796238948,-500.0,0.00027499,2]
[354894160,1740796238957,-500.0,0.00027499,2]
[354894161,1740796238966,-500.0,0.00027499,2]
[354894162,1740796238975,-500.0,0.00027499,2]
[354894163,1740796238984,-500.0,0.00027499,2]
[354894164,1740796238993,-500.0,0.00027499,2]
[354894165,1740796239003,-500.0,0.00027499,2]
[354894166,1740796239013,-500.0,0.00027499,2]
[354894167,1740796239023,-500.0,0.00027499,2]
[354894168,1740796239032,-500.0,0.00027499,2]
[354894169,1740796239042,-500.0,0.00027499,2]
[354894170,1740796239052,-44663.48832144,0.000275,2]
[354894171,1740796239061,-726.1691774,0.00027589,2]
[354894172,1740796239070,-380.0,0.00027777,2]
[354894173,1740796239079,-465.07919753,0.000279,2]
[354894174,1740796239088,-345.16703716,0.00027933,2]
[354894175,1740796239099,-32215.25022678,0.0002799,2]
[354894176,1740796239109,-23550.0,0.00028033,2]
[354894177,1740796239117,-752.996506,0.00028192,2]
[354894178,1740796239127,-220.52871957,0.0002821,5]
[354894179,1740796239137,-175.33985521,0.00028665,2]
[354894180,1740796239146,-349.14,0.0002886,3]
[354894181,1740796239155,-523.72,0.0002886,3]
[354894182,1740796239165,-866.20160669,0.00029,2]
[354894183,1740796239174,-220.52871957,0.00029072,5]
[354894184,1740796239183,-275.4529859,0.00029216,2]
[354894185,1740796239193,-160.35,0.00029327,2]
[354894186,1740796239202,-168.19,0.00029327,2]
[354894187,1740796239212,-168.19,0.00029327,2]
[354894188,1740796239221,-168.19,0.00029327,2]
[354894189,1740796239230,-36131.4890136,0.00029337,2]
[354894190,1740796239240,-10000.0,0.00029387,2]
[354894191,1740796239249,-823.0,0.00029422,2]
[354894192,1740796239259,-3304.9218278,0.00029567,2]
[354894193,1740796239268,-100.0,0.00029592,2]
[354894194,1740796239278,-345.16703714,0.000299,2]
[354894195,1740796239287,-220.52871957,0.00029934,5]
[354894196,1740796239298,-200.0,0.00029965,2]
[354894197,1740796239308,-5104.0,0.0003,2]
[354894198,1740796239318,-622.48669014,0.0003,2]
[354894199,1740796239327,-500.0,0.0003,2]
[354894200,1740796239336,-500.0,0.0003,2]
[354894201,1740796239345,-14631.29725681,0.0003,2]
[354894202,1740796239354,-712.2329628,0.00030204,2]
[354894203,1740796239363,-175.33985521,0.00030465,2]
[354894204,1740796239372,-220.52871957,0.00030797,5]
[354894205,1740796239382,-997.10838568,0.00030899,2]
[354894206,1740796239392,-151.0,0.00030978,2]
[354894207,1740796239401,-500.0,0.00030978,2]
[354894208,1740796239412,-299.33476126,0.0003099,2]
[354894209,1740796239422,-502.0,0.00030992,2]
[354894210,1740796239432,-508.0,0.00030993,2]
[354894211,1740796239443,-348.61034312,0.00031,10]
[354894212,1740796239454,-500.0,0.00031,10]
[354894213,1740796239466,-500.0,0.00031,10]
[354894214,1740796239475,-500.0,0.00031,10]
[354894215,1740796239484,-500.0,0.00031,10]
[354894216,1740796239495,-500.0,0.00031,10]
[354894217,1740796239504,-500.0,0.00031,10]
[354894218,1740796239515,-500.0,0.00031,10]
[354894219,1740796239524,-500.0,0.00031,10]
[354894220,1740796239534,-500.0,0.00031,10]
[354894221,1740796239545,-500.0,0.00031,10]
[354894222,1740796239554,-500.0,0.00031,10]
[354894223,1740796239563,-500.0,0.00031,10]
[354894224,1740796239572,-500.0,0.00031,10]
[354894225,1740796239581,-500.0,0.00031,10]
[354894226,1740796239590,-500.0,0.00031,10]
[354894227,1740796239600,-500.0,0.00031,10]
[354894228,1740796239609,-500.0,0.00031,10]
[354894229,1740796239619,-500.0,0.00031,10]
[354894230,1740796239628,-500.0,0.00031,10]
[354894231,1740796239637,-500.0,0.00031,10]
[354894232,1740796239647,-500.0,0.00031,10]
[354894233,1740796239656,-500.0,0.00031,10]
[354894234,1740796239666,-500.0,0.00031,10]
[354894235,1740796239676,-500.0,0.00031,10]
[354894236,1740796239685,-500.0,0.00031,10]
[354894237,1740796239695,-500.0,0.00031,10]
[354894238,1740796239704,-500.0,0.00031,10]
[354894239,1740796239713,-500.0,0.00031,10]
[354894240,1740796239723,-500.0,0.00031,10]
[354894241,1740796239733,-500.0,0.00031,10]
[354894242,1740796239742,-500.0,0.00031,10]
[354894243,1740796239751,-500.0,0.00031,10]
[354894244,1740796239761,-500.0,0.00031,10]
[354894245,1740796239770,-500.0,0.00031,10]
[354894246,1740796239780,-500.0,0.00031,10]
[354894247,1740796239789,-500.0,0.00031,10]
[354894248,1740796239800,-500.0,0.00031,10]
[354894249,1740796239809,-500.0,0.00031,10]
[354894250,1740796239819,-500.0,0.00031,10]
[354894251,1740796239828,-500.0,0.00031,10]
[354894252,1740796239838,-500.0,0.00031,10]
[354894253,1740796239848,-446.61051963,0.00031,10]
[354894254,1740796239858,-500.0,0.00031,10]
[354894255,1740796239867,-500.0,0.00031,2]
[354894256,1740796239876,-505.45998538,0.00031271,2]
[354894257,1740796239886,-166.1,0.00031526,2]
[354894258,1740796239895,-500.0,0.00031526,2]
[354894259,1740796239904,-220.52871957,0.00031659,6]
[354894260,1740796239914,-345.16703714,0.00031867,2]
[354894261,1740796239923,-500.0,0.00031875,2]
[354894262,1740796239932,-500.0,0.00031875,5]
[354894263,1740796239941,-500.0,0.00031875,5]
[354894264,1740796239951,-502.48401586,0.00031875,5]
[354894265,1740796239960,-500.0,0.00031875,5]
[354894266,1740796239969,-500.0,0.00031875,5]
[354894267,1740796239979,-500.0,0.00031875,5]
[354894268,1740796239989,-500.0,0.00031875,5]
[354894269,1740796239998,-504.98913373,0.00031875,5]
[354894270,1740796240009,-1152.0,0.00031939,2]
[354894271,1740796240019,-182.71,0.00032074,2]
[354894272,1740796240030,-500.0,0.00032074,2]
[354894273,1740796240040,-500.0,0.0003216,5]
[354894274,1740796240051,-500.0,0.0003216,5]
[354894275,1740796240062,-160.32996351,0.00032333,2]
[354894276,1740796240071,-502.9176103,0.00032333,5]
[354894277,1740796240081,-500.0,0.00032333,5]
[354894278,1740796240091,-360.32608912,0.00032333,5]
[354894279,1740796240102,-500.0,0.00032333,5]
[354894280,1740796240111,-503.90143932,0.00032333,5]
[354894281,1740796240120,-500.0,0.00032333,5]
[354894282,1740796240130,-500.31119276,0.00032333,5]
[354894283,1740796240139,-198.58950447,0.00032333,5]
[354894284,1740796240148,-192.80701253,0.00032333,5]
[354894285,1740796240158,-476.19,0.000324,7]
[354894286,1740796240167,-500.0,0.00032435,2]
[354894288,1740796240176,-278.04273592,0.00032435,2]
[354894289,1740796240186,-500.0,0.00032435,2]
[354894291,1740796240196,-183.89605138,0.00032435,2]
[354894294,1740796240358,-500.0,0.00032435,2]
[354894295,1740796240368,-649.22934214,0.00032435,2]
[354894296,1740796240378,-500.0,0.00032435,2]
[354894297,1740796240387,-500.0,0.00032435,2]
[354894298,1740796240396,-500.0,0.00032435,2]
[354894299,1740796240405,-500.0,0.00032435,2]
[354894300,1740796240415,-500.0,0.00032435,2]
[354894301,1740796240424,-500.0,0.00032435,2]
[354894302,1740796240433,-392.28149178,0.00032435,2]
[354894303,1740796240443,-500.0,0.00032435,2]
[354894304,1740796240452,-501.08947434,0.00032436,2]
[354894305,1740796240461,-500.0,0.00032436,2]
[354894306,1740796240471,-500.0,0.00032436,2]
[354894307,1740796240480,-500.0,0.00032436,2]
[354894308,1740796240489,-500.0,0.00032436,2]
[354894309,1740796240498,-500.0,0.00032436,2]
[354894310,1740796240507,-500.0,0.00032436,2]
[354894311,1740796240517,-500.0,0.00032436,2]
[354894312,1740796240526,-500.0,0.00032436,2]
[354894313,1740796240536,-500.0,0.00032436,2]
[354894314,1740796240545,-500.0,0.00032436,2]
[354894315,1740796240554,-500.0,0.00032436,2]
[354894316,1740796240563,-500.0,0.00032436,2]
[354894317,1740796240573,-500.0,0.00032436,2]
[354894318,1740796240582,-500.0,0.00032436,2]
[354894319,1740796240591,-500.0,0.00032436,2]
[354894320,1740796240600,-500.0,0.00032436,2]
[354894321,1740796240610,-500.0,0.00032436,2]
[354894322,1740796240619,-500.0,0.00032436,2]
[354894323,1740796240628,-500.0,0.0003245,5]
[354894324,1740796240637,-298.53335176,0.0003245,5]
[354894325,1740796240646,-481.69426348,0.0003245,5]
[354894326,1740796240657,-294.33186161,0.000325,30]
[354894327,1740796240666,-189.561446,0.00032517,2]
[354894328,1740796240676,-220.52871957,0.00032521,6]
[354894329,1740796240685,-200.981,0.00032622,2]
[354894330,1740796240694,-500.0,0.00032622,2]
[354894331,1740796240703,-230.117195,0.00032877,2]
[354894332,1740796240713,-1030.57,0.000329,30]
[354894333,1740796240723,-5862.76,0.000329,30]
[354894334,1740796240733,-99768.92,0.000329,30]
[354894335,1740796240743,-7362.56,0.000329,30]
[354894336,1740796240752,-2007.54,0.000329,30]
[354894337,1740796240761,-465.07919753,0.000329,2]
[354894338,1740796240771,-171.03046203,0.00033,120]
[354894339,1740796240780,-500.0,0.00033,2]
[354894340,1740796240789,-221.0791,0.0003317,2]
[354894341,1740796240799,-500.0,0.0003317,2]
[354894342,1740796240808,-500.0,0.00033217,5]
[354894343,1740796240818,-220.52871957,0.00033383,6]
[354894344,1740796240827,-302.0,0.00033718,2]
[354894345,1740796240836,-302.0,0.00033718,2]
[354894346,1740796240845,-345.16703714,0.00033833,2]
[354894347,1740796240854,-114553.87725959,0.00034,2]
[354894348,1740796240864,-220.52871957,0.00034245,6]
[354894349,1740796240873,-1613.0,0.00034671,2]
[354894350,1740796240883,-851.20096982,0.00035,2]
[354894351,1740796240892,-11604.91175033,0.00035,2]
[354894352,1740796240902,-476.19,0.00035,7]
[354894353,1740796240911,-220.52871957,0.00035107,7]
[354894354,1740796240921,-151.0,0.000352,13]
[354894355,1740796240930,-345.16703714,0.000358,2]
[354894356,1740796240940,-5862.76,0.000359,30]
[354894357,1740796240949,-99768.92,0.000359,30]
[354894358,1740796240958,-7362.56,0.000359,30]
[354894359,1740796240967,-220.52871957,0.00035969,7]
[354894360,1740796240976,-158.189,0.00035999,5]
[354894361,1740796240986,-1030.57,0.00036,30]
[354894362,1740796240995,-60076.37983719,0.00036,30]
[354894363,1740796241005,-230.117195,0.00036008,2]
[354894364,1740796241018,-151.0,0.000361,20]
[354894365,1740796241027,-14579.81744571,0.000362,98]
[354894366,1740796241037,-14579.81744567,0.000362,98]
[354894367,1740796241048,-14579.81744567,0.000362,98]
[354894368,1740796241058,-151.0,0.000365,18]
[354894369,1740796241068,-2007.54,0.000365,30]
[354894370,1740796241078,-151.0,0.000368,15]
[354894371,1740796241087,-220.52871957,0.00036831,7]
[354894372,1740796241099,-509.40318227,0.00037354,2]
[354894373,1740796241109,-501.16940073,0.00037354,5]
[354894374,1740796241118,-1000.0,0.00037354,5]
[354894375,1740796241128,-1000.0,0.00037354,5]
[354894376,1740796241138,-1000.0,0.00037354,5]
[354894377,1740796241147,-151.0,0.000374,17]
[354894378,1740796241157,-2258.0,0.00037638,2]
[354894379,1740796241167,-1000.0,0.00037639,5]
[354894380,1740796241176,-1000.0,0.00037639,5]
[354894381,1740796241186,-220.52871957,0.00037693,7]
[354894382,1740796241195,-99768.92,0.000377,30]
[354894383,1740796241205,-7362.56,0.000377,30]
[354894384,1740796241215,-151.0,0.000378,18]
[354894385,1740796241224,-5862.76,0.000378,30]
[354894386,1740796241234,-510.31796476,0.00037813,5]
[354894387,1740796241243,-1000.0,0.00037813,5]
[354894388,1740796241253,-1002.68108553,0.00037813,5]
[354894389,1740796241262,-2000.0,0.00037869,4]
[354894390,1740796241271,-1000.0,0.00037929,5]
[354894391,1740796241281,-151.0,0.00038,13]
[354894392,1740796241291,-1030.57,0.00038,30]
[354894393,1740796241301,-160.0,0.00038007,3]
[354894394,1740796241311,-1095.9316862,0.00038696,5]
[354894395,1740796241321,-151.0,0.000387,10]
[354894396,1740796241331,-2007.54,0.000388,30]
[354894397,1740796241341,-151.0,0.000388,13]
[354894398,1740796241350,-151.0,0.000391,12]
[354894399,1740796241360,-230.117195,0.00039139,2]
[354894400,1740796241369,-151.0,0.000393,10]
[354894401,1740796241380,-160.0,0.00039308,4]
[354894402,1740796241389,-99768.92,0.000395,30]
[354894403,1740796241399,-7362.56,0.000395,30]
[354894404,1740796241409,-13323.17068873,0.000398,60]
[354894405,1740796241418,-151.0,0.000399,16]
[354894406,1740796241427,-234.36552489,0.00039966,2]
[354894407,1740796241437,-983.873283,0.0004,120]
[354894408,1740796241448,-151.0,0.0004,11]
[354894409,1740796241459,-250.00000098,0.0004,10]
[354894410,1740796241470,-502.3335248,0.0004,120]
[354894411,1740796241480,-226.49098775,0.0004,120]
[354894412,1740796241491,-265042.88675685,0.0004,30]
[354894413,1740796241500,-14579.81744567,0.0004003,120]
[354894414,1740796241511,-5862.76,0.000401,30]
[354894415,1740796241521,-2000.0,0.00040295,4]
[354894416,1740796241530,-151.0,0.000404,20]
[354894417,1740796241540,-1030.57,0.000404,30]
[354894418,1740796241551,-217.77795014,0.000405,2]
[354894419,1740796241561,-151.0,0.000406,19]
[354894420,1740796241570,-160.0,0.00040608,5]
[354894421,1740796241579,-1402.0,0.00040858,5]
[354894422,1740796241588,-40001.89031628,0.000409,2]
[354894423,1740796241598,-2007.54,0.000409,30]
[354894424,1740796241609,-284.083628,0.000409,14]
[354894425,1740796241620,-151.0,0.000409,14]
[354894426,1740796241631,-151.0,0.000409,14]
[354894427,1740796241641,-151.0,0.000409,14]
[354894428,1740796241652,-11212.67300284,0.00040996,2]
[354894429,1740796241660,-80851.0,0.00041,30]
[354894430,1740796241671,-5000.0,0.0004108,120]
[354894431,1740796241681,-5589.02,0.00041093,120]
[354894432,1740796241693,-5000.0,0.00041094,120]
[354894433,1740796241703,-24096.74,0.00041095,120]
[354894434,1740796241712,-183.107451,0.00041096,120]
[354894435,1740796241724,-151.0,0.00041096,120]
[354894436,1740796241734,-151.0,0.00041096,120]
[354894437,1740796241743,-151.0,0.00041096,120]
[354894438,1740796241753,-151.0,0.00041096,120]